Workbook

Sheet Inversiones
D3: Reporte de Inversiones - Compañías de Seguros Generales
D4: Datos a Diciembre de 2023
C6: Seleccionar Moneda
I7: Cifras en M$ | J7: 1
C8: Cifras en UF | H8: =Moneda -> Cifras en UF | I8: Cifras en UF | J8: =1000/K8 -> 0.0271818 | K8: 36,789.36
H9: =VLOOKUP(H8,I7:J9,2,0) -> 0.02718177212 | I9: Cifras en US$ | J9: =1000/K9 -> 1.130467222 | K9: 884.59
C10: Utilizar fila para revisar | D10: ASSURANT Chile | E10: AVLA crédito | F10: BCI Seguros | G10: BNP Paribas Cardiff | H10: CESCE CHILE | I10: CHUBB GENERALES | J10: COFACE CHILE | K10: CONSORCIO NACIONAL | L10: CONTEMPORA | M10: CONTINENTAL GENERALES | N10: CREDITO CONTINENTAL | O10: EVEREST | P10: FID CHILE | Q10: HDI SEGUROS | R10: KONSEGUR | S10: LIBERTY SEGUROS | T10: MUT DE CARABINEROS | U10: MAPFRE | V10: METLIFE GENERALES | W10: ORION seguros | X10: ORSAN | Y10: PORVENIR | Z10: REALE CHILE | AA10: RENTA NACIONAL | AB10: SOLUNION | AC10: SOUTHBRIDGE | AD10: STARR international | AE10: SURAMERICANA | AF10: UNNIO | AG10: ZENIT seguros | AH10: ZURICH CHILE | AI10: ZURICH SANTANDER
C11: No borrar fila | D11: ASSURANT Chile | E11: AVLA crédito | F11: BCI Seguros | G11: BNP Paribas Cardiff | H11: CESCE CHILE | I11: CHUBB GENERALES | J11: COFACE CHILE | K11: CONSORCIO NACIONAL | L11: CONTEMPORA | M11: CONTINENTAL GENERALES | N11: CREDITO CONTINENTAL | O11: EVEREST | P11: FID CHILE | Q11: HDI SEGUROS | R11: KONSEGUR | S11: LIBERTY SEGUROS | T11: MUT DE CARABINEROS | U11: MAPFRE | V11: METLIFE GENERALES | W11: ORION seguros | X11: ORSAN | Y11: PORVENIR | Z11: REALE CHILE | AA11: RENTA NACIONAL | AB11: SOLUNION | AC11: SOUTHBRIDGE | AD11: STARR international | AE11: SURAMERICANA | AF11: UNNIO | AG11: ZENIT seguros | AH11: ZURICH CHILE | AI11: ZURICH SANTANDER
C12: TIPO DE INSTRUMENTO | D12: Assurant Chile | E12: AVLA Crédito | F12: BCI Seguros | G12: BNP Paribas Cardif | H12: Cesce Chile | I12: Chubb Generales | J12: Coface Chile | K12: Consorcio Nacional | L12: Contempora | M12: Continental Crédito | N12: Continental Generales | O12: Everest Generales | P12: FID Chile | Q12: HDI Seguros | R12: Konsegur | S12: Liberty Seguros | T12: M. de Carabineros | U12: Mapfre | V12: MetLife Generales | W12: Orion Seguros | X12: Orsan Crédito | Y12: Porvenir | Z12: Reale Chile | AA12: Renta Nacional | AB12: Solunión Chile | AC12: Southbridge | AD12: Starr International | AE12: Suramericana | AF12: Unnio | AG12: Zenit Seguros | AH12: Zurich Chile | AI12: Zurich Santander
A13: 3 | B13: InstrumentosdelEstado | C13: Instrumentos del Estado | D13: =VLOOKUP(D$11,base!$A$8:$R$46,$A13,FALSE) -> 2009088 | E13: =VLOOKUP(E$11,base!$A$8:$R$46,$A13,FALSE) -> 3608677 | F13: =VLOOKUP(F$11,base!$A$8:$R$46,$A13,FALSE) -> 15729621 | G13: =VLOOKUP(G$11,base!$A$8:$R$46,$A13,FALSE) -> 59047460 | H13: =VLOOKUP(H$11,base!$A$8:$R$46,$A13,FALSE) -> 1136496 | I13: =VLOOKUP(I$11,base!$A$8:$R$46,$A13,FALSE) -> 64909526 | J13: =VLOOKUP(J$11,base!$A$8:$R$46,$A13,FALSE) -> 17780023 | K13: =VLOOKUP(K$11,base!$A$8:$R$46,$A13,FALSE) -> 0 | L13: =VLOOKUP(L$11,base!$A$8:$R$46,$A13,FALSE) -> 728131 | M13: =VLOOKUP(M$11,base!$A$8:$R$46,$A13,FALSE) -> 0 | N13: =VLOOKUP(N$11,base!$A$8:$R$46,$A13,FALSE) -> 0 | O13: =VLOOKUP(O$11,base!$A$8:$R$46,$A13,FALSE) -> 0 | P13: =VLOOKUP(P$11,base!$A$8:$R$46,$A13,FALSE) -> 7927153 | Q13: =VLOOKUP(Q$11,base!$A$8:$R$46,$A13,FALSE) -> 43609614 | R13: =VLOOKUP(R$11,base!$A$8:$R$46,$A13,FALSE) -> 0 | S13: =VLOOKUP(S$11,base!$A$8:$R$46,$A13,FALSE) -> 61159563 | T13: =VLOOKUP(T$11,base!$A$8:$R$46,$A13,FALSE) -> 4322358 | U13: =VLOOKUP(U$11,base!$A$8:$R$46,$A13,FALSE) -> 217375 | V13: =VLOOKUP(V$11,base!$A$8:$R$46,$A13,FALSE) -> 0 | W13: =VLOOKUP(W$11,base!$A$8:$R$46,$A13,FALSE) -> 1656306 | X13: =VLOOKUP(X$11,base!$A$8:$R$46,$A13,FALSE) -> 4453663 | Y13: =VLOOKUP(Y$11,base!$A$8:$R$46,$A13,FALSE) -> 3889309 | Z13: =VLOOKUP(Z$11,base!$A$8:$R$46,$A13,FALSE) -> 8060738 | AA13: =VLOOKUP(AA$11,base!$A$8:$R$46,$A13,FALSE) -> 5400999 | AB13: =VLOOKUP(AB$11,base!$A$8:$R$46,$A13,FALSE) -> 6915977 | AC13: =VLOOKUP(AC$11,base!$A$8:$R$46,$A13,FALSE) -> 26859019 | AD13: =VLOOKUP(AD$11,base!$A$8:$R$46,$A13,FALSE) -> 0 | AE13: =VLOOKUP(AE$11,base!$A$8:$R$46,$A13,FALSE) -> 33387047 | AF13: =VLOOKUP(AF$11,base!$A$8:$R$46,$A13,FALSE) -> 10615226 | AG13: =VLOOKUP(AG$11,base!$A$8:$R$46,$A13,FALSE) -> 569204 | AH13: =VLOOKUP(AH$11,base!$A$8:$R$46,$A13,FALSE) -> 15398171 | AI13: =VLOOKUP(AI$11,base!$A$8:$R$46,$A13,FALSE) -> 21513718
A14: 4 | B14: DepÃ³sitosaplazo | C14: Depósitos a Plazo | D14: =VLOOKUP(D$11,base!$A$8:$R$46,$A14,FALSE) -> 5946918 | E14: =VLOOKUP(E$11,base!$A$8:$R$46,$A14,FALSE) -> 375977 | F14: =VLOOKUP(F$11,base!$A$8:$R$46,$A14,FALSE) -> 26351092 | G14: =VLOOKUP(G$11,base!$A$8:$R$46,$A14,FALSE) -> 6053867 | H14: =VLOOKUP(H$11,base!$A$8:$R$46,$A14,FALSE) -> 0 | I14: =VLOOKUP(I$11,base!$A$8:$R$46,$A14,FALSE) -> 25761075 | J14: =VLOOKUP(J$11,base!$A$8:$R$46,$A14,FALSE) -> 0 | K14: =VLOOKUP(K$11,base!$A$8:$R$46,$A14,FALSE) -> 2847612 | L14: =VLOOKUP(L$11,base!$A$8:$R$46,$A14,FALSE) -> 0 | M14: =VLOOKUP(M$11,base!$A$8:$R$46,$A14,FALSE) -> 22522116 | N14: =VLOOKUP(N$11,base!$A$8:$R$46,$A14,FALSE) -> 9643794 | O14: =VLOOKUP(O$11,base!$A$8:$R$46,$A14,FALSE) -> 0 | P14: =VLOOKUP(P$11,base!$A$8:$R$46,$A14,FALSE) -> 1040749 | Q14: =VLOOKUP(Q$11,base!$A$8:$R$46,$A14,FALSE) -> 3303685 | R14: =VLOOKUP(R$11,base!$A$8:$R$46,$A14,FALSE) -> 0 | S14: =VLOOKUP(S$11,base!$A$8:$R$46,$A14,FALSE) -> 14828856 | T14: =VLOOKUP(T$11,base!$A$8:$R$46,$A14,FALSE) -> 13161292 | U14: =VLOOKUP(U$11,base!$A$8:$R$46,$A14,FALSE) -> 1614051 | V14: =VLOOKUP(V$11,base!$A$8:$R$46,$A14,FALSE) -> 0 | W14: =VLOOKUP(W$11,base!$A$8:$R$46,$A14,FALSE) -> 1790548 | X14: =VLOOKUP(X$11,base!$A$8:$R$46,$A14,FALSE) -> 56786 | Y14: =VLOOKUP(Y$11,base!$A$8:$R$46,$A14,FALSE) -> 2035777 | Z14: =VLOOKUP(Z$11,base!$A$8:$R$46,$A14,FALSE) -> 2001793 | AA14: =VLOOKUP(AA$11,base!$A$8:$R$46,$A14,FALSE) -> 547514 | AB14: =VLOOKUP(AB$11,base!$A$8:$R$46,$A14,FALSE) -> 0 | AC14: =VLOOKUP(AC$11,base!$A$8:$R$46,$A14,FALSE) -> 0 | AD14: =VLOOKUP(AD$11,base!$A$8:$R$46,$A14,FALSE) -> 0 | AE14: =VLOOKUP(AE$11,base!$A$8:$R$46,$A14,FALSE) -> 0 | AF14: =VLOOKUP(AF$11,base!$A$8:$R$46,$A14,FALSE) -> 0 | AG14: =VLOOKUP(AG$11,base!$A$8:$R$46,$A14,FALSE) -> 4879679 | AH14: =VLOOKUP(AH$11,base!$A$8:$R$46,$A14,FALSE) -> 2004898 | AI14: =VLOOKUP(AI$11,base!$A$8:$R$46,$A14,FALSE) -> 0
A15: 5 | B15: Bonosbancarios | C15: Bonos Bancarios | D15: =VLOOKUP(D$11,base!$A$8:$R$46,$A15,FALSE) -> 0 | E15: =VLOOKUP(E$11,base!$A$8:$R$46,$A15,FALSE) -> 1714523 | F15: =VLOOKUP(F$11,base!$A$8:$R$46,$A15,FALSE) -> 177567785 | G15: =VLOOKUP(G$11,base!$A$8:$R$46,$A15,FALSE) -> 63325957 | H15: =VLOOKUP(H$11,base!$A$8:$R$46,$A15,FALSE) -> 676079 | I15: =VLOOKUP(I$11,base!$A$8:$R$46,$A15,FALSE) -> 63780443 | J15: =VLOOKUP(J$11,base!$A$8:$R$46,$A15,FALSE) -> 2401785 | K15: =VLOOKUP(K$11,base!$A$8:$R$46,$A15,FALSE) -> 15126258 | L15: =VLOOKUP(L$11,base!$A$8:$R$46,$A15,FALSE) -> 2252869 | M15: =VLOOKUP(M$11,base!$A$8:$R$46,$A15,FALSE) -> 0 | N15: =VLOOKUP(N$11,base!$A$8:$R$46,$A15,FALSE) -> 0 | O15: =VLOOKUP(O$11,base!$A$8:$R$46,$A15,FALSE) -> 0 | P15: =VLOOKUP(P$11,base!$A$8:$R$46,$A15,FALSE) -> 6632005 | Q15: =VLOOKUP(Q$11,base!$A$8:$R$46,$A15,FALSE) -> 152712019 | R15: =VLOOKUP(R$11,base!$A$8:$R$46,$A15,FALSE) -> 0 | S15: =VLOOKUP(S$11,base!$A$8:$R$46,$A15,FALSE) -> 111853403 | T15: =VLOOKUP(T$11,base!$A$8:$R$46,$A15,FALSE) -> 0 | U15: =VLOOKUP(U$11,base!$A$8:$R$46,$A15,FALSE) -> 46567715 | V15: =VLOOKUP(V$11,base!$A$8:$R$46,$A15,FALSE) -> 1001645 | W15: =VLOOKUP(W$11,base!$A$8:$R$46,$A15,FALSE) -> 12574616 | X15: =VLOOKUP(X$11,base!$A$8:$R$46,$A15,FALSE) -> 9103196 | Y15: =VLOOKUP(Y$11,base!$A$8:$R$46,$A15,FALSE) -> 3028818 | Z15: =VLOOKUP(Z$11,base!$A$8:$R$46,$A15,FALSE) -> 3571829 | AA15: =VLOOKUP(AA$11,base!$A$8:$R$46,$A15,FALSE) -> 10684393 | AB15: =VLOOKUP(AB$11,base!$A$8:$R$46,$A15,FALSE) -> 1300259 | AC15: =VLOOKUP(AC$11,base!$A$8:$R$46,$A15,FALSE) -> 16848824 | AD15: =VLOOKUP(AD$11,base!$A$8:$R$46,$A15,FALSE) -> 0 | AE15: =VLOOKUP(AE$11,base!$A$8:$R$46,$A15,FALSE) -> 112401471 | AF15: =VLOOKUP(AF$11,base!$A$8:$R$46,$A15,FALSE) -> 0 | AG15: =VLOOKUP(AG$11,base!$A$8:$R$46,$A15,FALSE) -> 15390980 | AH15: =VLOOKUP(AH$11,base!$A$8:$R$46,$A15,FALSE) -> 14563600 | AI15: =VLOOKUP(AI$11,base!$A$8:$R$46,$A15,FALSE) -> 20341351
A16: 6 | B16: Letrashipotecarias | C16: Letras Hipotecarias | D16: =VLOOKUP(D$11,base!$A$8:$R$46,$A16,FALSE) -> 0 | E16: =VLOOKUP(E$11,base!$A$8:$R$46,$A16,FALSE) -> 0 | F16: =VLOOKUP(F$11,base!$A$8:$R$46,$A16,FALSE) -> 0 | G16: =VLOOKUP(G$11,base!$A$8:$R$46,$A16,FALSE) -> 4424 | H16: =VLOOKUP(H$11,base!$A$8:$R$46,$A16,FALSE) -> 52476 | I16: =VLOOKUP(I$11,base!$A$8:$R$46,$A16,FALSE) -> 0 | J16: =VLOOKUP(J$11,base!$A$8:$R$46,$A16,FALSE) -> 0 | K16: =VLOOKUP(K$11,base!$A$8:$R$46,$A16,FALSE) -> 756002 | L16: =VLOOKUP(L$11,base!$A$8:$R$46,$A16,FALSE) -> 0 | M16: =VLOOKUP(M$11,base!$A$8:$R$46,$A16,FALSE) -> 0 | N16: =VLOOKUP(N$11,base!$A$8:$R$46,$A16,FALSE) -> 0 | O16: =VLOOKUP(O$11,base!$A$8:$R$46,$A16,FALSE) -> 0 | P16: =VLOOKUP(P$11,base!$A$8:$R$46,$A16,FALSE) -> 0 | Q16: =VLOOKUP(Q$11,base!$A$8:$R$46,$A16,FALSE) -> 95093 | R16: =VLOOKUP(R$11,base!$A$8:$R$46,$A16,FALSE) -> 0 | S16: =VLOOKUP(S$11,base!$A$8:$R$46,$A16,FALSE) -> 149098 | T16: =VLOOKUP(T$11,base!$A$8:$R$46,$A16,FALSE) -> 0 | U16: =VLOOKUP(U$11,base!$A$8:$R$46,$A16,FALSE) -> 0 | V16: =VLOOKUP(V$11,base!$A$8:$R$46,$A16,FALSE) -> 0 | W16: =VLOOKUP(W$11,base!$A$8:$R$46,$A16,FALSE) -> 0 | X16: =VLOOKUP(X$11,base!$A$8:$R$46,$A16,FALSE) -> 0 | Y16: =VLOOKUP(Y$11,base!$A$8:$R$46,$A16,FALSE) -> 0 | Z16: =VLOOKUP(Z$11,base!$A$8:$R$46,$A16,FALSE) -> 0 | AA16: =VLOOKUP(AA$11,base!$A$8:$R$46,$A16,FALSE) -> 28072 | AB16: =VLOOKUP(AB$11,base!$A$8:$R$46,$A16,FALSE) -> 0 | AC16: =VLOOKUP(AC$11,base!$A$8:$R$46,$A16,FALSE) -> 0 | AD16: =VLOOKUP(AD$11,base!$A$8:$R$46,$A16,FALSE) -> 0 | AE16: =VLOOKUP(AE$11,base!$A$8:$R$46,$A16,FALSE) -> 0 | AF16: =VLOOKUP(AF$11,base!$A$8:$R$46,$A16,FALSE) -> 0 | AG16: =VLOOKUP(AG$11,base!$A$8:$R$46,$A16,FALSE) -> 0 | AH16: =VLOOKUP(AH$11,base!$A$8:$R$46,$A16,FALSE) -> 0 | AI16: =VLOOKUP(AI$11,base!$A$8:$R$46,$A16,FALSE) -> 106831
A17: 7 | B17: Bonosydebentures | C17: Bonos y Debentures | D17: =VLOOKUP(D$11,base!$A$8:$R$46,$A17,FALSE) -> 0 | E17: =VLOOKUP(E$11,base!$A$8:$R$46,$A17,FALSE) -> 1439025 | F17: =VLOOKUP(F$11,base!$A$8:$R$46,$A17,FALSE) -> 18454075 | G17: =VLOOKUP(G$11,base!$A$8:$R$46,$A17,FALSE) -> 46391105 | H17: =VLOOKUP(H$11,base!$A$8:$R$46,$A17,FALSE) -> 663245 | I17: =VLOOKUP(I$11,base!$A$8:$R$46,$A17,FALSE) -> 38797608 | J17: =VLOOKUP(J$11,base!$A$8:$R$46,$A17,FALSE) -> 527801 | K17: =VLOOKUP(K$11,base!$A$8:$R$46,$A17,FALSE) -> 23839435 | L17: =VLOOKUP(L$11,base!$A$8:$R$46,$A17,FALSE) -> 1227798 | M17: =VLOOKUP(M$11,base!$A$8:$R$46,$A17,FALSE) -> 0 | N17: =VLOOKUP(N$11,base!$A$8:$R$46,$A17,FALSE) -> 0 | O17: =VLOOKUP(O$11,base!$A$8:$R$46,$A17,FALSE) -> 0 | P17: =VLOOKUP(P$11,base!$A$8:$R$46,$A17,FALSE) -> 2736819 | Q17: =VLOOKUP(Q$11,base!$A$8:$R$46,$A17,FALSE) -> 56435419 | R17: =VLOOKUP(R$11,base!$A$8:$R$46,$A17,FALSE) -> 0 | S17: =VLOOKUP(S$11,base!$A$8:$R$46,$A17,FALSE) -> 11203560 | T17: =VLOOKUP(T$11,base!$A$8:$R$46,$A17,FALSE) -> 0 | U17: =VLOOKUP(U$11,base!$A$8:$R$46,$A17,FALSE) -> 16524469 | V17: =VLOOKUP(V$11,base!$A$8:$R$46,$A17,FALSE) -> 663018 | W17: =VLOOKUP(W$11,base!$A$8:$R$46,$A17,FALSE) -> 6488407 | X17: =VLOOKUP(X$11,base!$A$8:$R$46,$A17,FALSE) -> 1484061 | Y17: =VLOOKUP(Y$11,base!$A$8:$R$46,$A17,FALSE) -> 2905075 | Z17: =VLOOKUP(Z$11,base!$A$8:$R$46,$A17,FALSE) -> 0 | AA17: =VLOOKUP(AA$11,base!$A$8:$R$46,$A17,FALSE) -> 12613122 | AB17: =VLOOKUP(AB$11,base!$A$8:$R$46,$A17,FALSE) -> 0 | AC17: =VLOOKUP(AC$11,base!$A$8:$R$46,$A17,FALSE) -> 31848201 | AD17: =VLOOKUP(AD$11,base!$A$8:$R$46,$A17,FALSE) -> 0 | AE17: =VLOOKUP(AE$11,base!$A$8:$R$46,$A17,FALSE) -> 28675822 | AF17: =VLOOKUP(AF$11,base!$A$8:$R$46,$A17,FALSE) -> 0 | AG17: =VLOOKUP(AG$11,base!$A$8:$R$46,$A17,FALSE) -> 617313 | AH17: =VLOOKUP(AH$11,base!$A$8:$R$46,$A17,FALSE) -> 42160806 | AI17: =VLOOKUP(AI$11,base!$A$8:$R$46,$A17,FALSE) -> 55022315
A18: 8 | B18: CrÃ©ditossindicados | C18: Créditos Sindicados | D18: =VLOOKUP(D$11,base!$A$8:$R$46,$A18,FALSE) -> 0 | E18: =VLOOKUP(E$11,base!$A$8:$R$46,$A18,FALSE) -> 0 | F18: =VLOOKUP(F$11,base!$A$8:$R$46,$A18,FALSE) -> 0 | G18: =VLOOKUP(G$11,base!$A$8:$R$46,$A18,FALSE) -> 0 | H18: =VLOOKUP(H$11,base!$A$8:$R$46,$A18,FALSE) -> 0 | I18: =VLOOKUP(I$11,base!$A$8:$R$46,$A18,FALSE) -> 0 | J18: =VLOOKUP(J$11,base!$A$8:$R$46,$A18,FALSE) -> 0 | K18: =VLOOKUP(K$11,base!$A$8:$R$46,$A18,FALSE) -> 0 | L18: =VLOOKUP(L$11,base!$A$8:$R$46,$A18,FALSE) -> 0 | M18: =VLOOKUP(M$11,base!$A$8:$R$46,$A18,FALSE) -> 0 | N18: =VLOOKUP(N$11,base!$A$8:$R$46,$A18,FALSE) -> 0 | O18: =VLOOKUP(O$11,base!$A$8:$R$46,$A18,FALSE) -> 0 | P18: =VLOOKUP(P$11,base!$A$8:$R$46,$A18,FALSE) -> 0 | Q18: =VLOOKUP(Q$11,base!$A$8:$R$46,$A18,FALSE) -> 0 | R18: =VLOOKUP(R$11,base!$A$8:$R$46,$A18,FALSE) -> 0 | S18: =VLOOKUP(S$11,base!$A$8:$R$46,$A18,FALSE) -> 0 | T18: =VLOOKUP(T$11,base!$A$8:$R$46,$A18,FALSE) -> 0 | U18: =VLOOKUP(U$11,base!$A$8:$R$46,$A18,FALSE) -> 0 | V18: =VLOOKUP(V$11,base!$A$8:$R$46,$A18,FALSE) -> 0 | W18: =VLOOKUP(W$11,base!$A$8:$R$46,$A18,FALSE) -> 0 | X18: =VLOOKUP(X$11,base!$A$8:$R$46,$A18,FALSE) -> 0 | Y18: =VLOOKUP(Y$11,base!$A$8:$R$46,$A18,FALSE) -> 0 | Z18: =VLOOKUP(Z$11,base!$A$8:$R$46,$A18,FALSE) -> 0 | AA18: =VLOOKUP(AA$11,base!$A$8:$R$46,$A18,FALSE) -> 0 | AB18: =VLOOKUP(AB$11,base!$A$8:$R$46,$A18,FALSE) -> 0 | AC18: =VLOOKUP(AC$11,base!$A$8:$R$46,$A18,FALSE) -> 0 | AD18: =VLOOKUP(AD$11,base!$A$8:$R$46,$A18,FALSE) -> 0 | AE18: =VLOOKUP(AE$11,base!$A$8:$R$46,$A18,FALSE) -> 0 | AF18: =VLOOKUP(AF$11,base!$A$8:$R$46,$A18,FALSE) -> 0 | AG18: =VLOOKUP(AG$11,base!$A$8:$R$46,$A18,FALSE) -> 0 | AH18: =VLOOKUP(AH$11,base!$A$8:$R$46,$A18,FALSE) -> 0 | AI18: =VLOOKUP(AI$11,base!$A$8:$R$46,$A18,FALSE) -> 0
A19: 9 | B19: Mutuoshipotecarios | C19: Mutuos Hipotecarios | D19: =VLOOKUP(D$11,base!$A$8:$R$46,$A19,FALSE) -> 0 | E19: =VLOOKUP(E$11,base!$A$8:$R$46,$A19,FALSE) -> 3446574 | F19: =VLOOKUP(F$11,base!$A$8:$R$46,$A19,FALSE) -> 0 | G19: =VLOOKUP(G$11,base!$A$8:$R$46,$A19,FALSE) -> 71547 | H19: =VLOOKUP(H$11,base!$A$8:$R$46,$A19,FALSE) -> 0 | I19: =VLOOKUP(I$11,base!$A$8:$R$46,$A19,FALSE) -> 0 | J19: =VLOOKUP(J$11,base!$A$8:$R$46,$A19,FALSE) -> 0 | K19: =VLOOKUP(K$11,base!$A$8:$R$46,$A19,FALSE) -> 0 | L19: =VLOOKUP(L$11,base!$A$8:$R$46,$A19,FALSE) -> 0 | M19: =VLOOKUP(M$11,base!$A$8:$R$46,$A19,FALSE) -> 0 | N19: =VLOOKUP(N$11,base!$A$8:$R$46,$A19,FALSE) -> 0 | O19: =VLOOKUP(O$11,base!$A$8:$R$46,$A19,FALSE) -> 0 | P19: =VLOOKUP(P$11,base!$A$8:$R$46,$A19,FALSE) -> 0 | Q19: =VLOOKUP(Q$11,base!$A$8:$R$46,$A19,FALSE) -> 0 | R19: =VLOOKUP(R$11,base!$A$8:$R$46,$A19,FALSE) -> 0 | S19: =VLOOKUP(S$11,base!$A$8:$R$46,$A19,FALSE) -> 0 | T19: =VLOOKUP(T$11,base!$A$8:$R$46,$A19,FALSE) -> 0 | U19: =VLOOKUP(U$11,base!$A$8:$R$46,$A19,FALSE) -> 0 | V19: =VLOOKUP(V$11,base!$A$8:$R$46,$A19,FALSE) -> 0 | W19: =VLOOKUP(W$11,base!$A$8:$R$46,$A19,FALSE) -> 0 | X19: =VLOOKUP(X$11,base!$A$8:$R$46,$A19,FALSE) -> 0 | Y19: =VLOOKUP(Y$11,base!$A$8:$R$46,$A19,FALSE) -> 0 | Z19: =VLOOKUP(Z$11,base!$A$8:$R$46,$A19,FALSE) -> 0 | AA19: =VLOOKUP(AA$11,base!$A$8:$R$46,$A19,FALSE) -> 0 | AB19: =VLOOKUP(AB$11,base!$A$8:$R$46,$A19,FALSE) -> 0 | AC19: =VLOOKUP(AC$11,base!$A$8:$R$46,$A19,FALSE) -> 962809 | AD19: =VLOOKUP(AD$11,base!$A$8:$R$46,$A19,FALSE) -> 0 | AE19: =VLOOKUP(AE$11,base!$A$8:$R$46,$A19,FALSE) -> 0 | AF19: =VLOOKUP(AF$11,base!$A$8:$R$46,$A19,FALSE) -> 0 | AG19: =VLOOKUP(AG$11,base!$A$8:$R$46,$A19,FALSE) -> 0 | AH19: =VLOOKUP(AH$11,base!$A$8:$R$46,$A19,FALSE) -> 5913685 | AI19: =VLOOKUP(AI$11,base!$A$8:$R$46,$A19,FALSE) -> 10004783
A20: 10 | B20: AccionesdeS.A. | C20: Acciones de S.A. | D20: =VLOOKUP(D$11,base!$A$8:$R$46,$A20,FALSE) -> 0 | E20: =VLOOKUP(E$11,base!$A$8:$R$46,$A20,FALSE) -> 0 | F20: =VLOOKUP(F$11,base!$A$8:$R$46,$A20,FALSE) -> 325023 | G20: =VLOOKUP(G$11,base!$A$8:$R$46,$A20,FALSE) -> 0 | H20: =VLOOKUP(H$11,base!$A$8:$R$46,$A20,FALSE) -> 0 | I20: =VLOOKUP(I$11,base!$A$8:$R$46,$A20,FALSE) -> 0 | J20: =VLOOKUP(J$11,base!$A$8:$R$46,$A20,FALSE) -> 0 | K20: =VLOOKUP(K$11,base!$A$8:$R$46,$A20,FALSE) -> 0 | L20: =VLOOKUP(L$11,base!$A$8:$R$46,$A20,FALSE) -> 0 | M20: =VLOOKUP(M$11,base!$A$8:$R$46,$A20,FALSE) -> 0 | N20: =VLOOKUP(N$11,base!$A$8:$R$46,$A20,FALSE) -> 465732 | O20: =VLOOKUP(O$11,base!$A$8:$R$46,$A20,FALSE) -> 0 | P20: =VLOOKUP(P$11,base!$A$8:$R$46,$A20,FALSE) -> 0 | Q20: =VLOOKUP(Q$11,base!$A$8:$R$46,$A20,FALSE) -> 0 | R20: =VLOOKUP(R$11,base!$A$8:$R$46,$A20,FALSE) -> 0 | S20: =VLOOKUP(S$11,base!$A$8:$R$46,$A20,FALSE) -> 0 | T20: =VLOOKUP(T$11,base!$A$8:$R$46,$A20,FALSE) -> 0 | U20: =VLOOKUP(U$11,base!$A$8:$R$46,$A20,FALSE) -> 10569 | V20: =VLOOKUP(V$11,base!$A$8:$R$46,$A20,FALSE) -> 0 | W20: =VLOOKUP(W$11,base!$A$8:$R$46,$A20,FALSE) -> 0 | X20: =VLOOKUP(X$11,base!$A$8:$R$46,$A20,FALSE) -> 585810 | Y20: =VLOOKUP(Y$11,base!$A$8:$R$46,$A20,FALSE) -> 0 | Z20: =VLOOKUP(Z$11,base!$A$8:$R$46,$A20,FALSE) -> 0 | AA20: =VLOOKUP(AA$11,base!$A$8:$R$46,$A20,FALSE) -> 0 | AB20: =VLOOKUP(AB$11,base!$A$8:$R$46,$A20,FALSE) -> 0 | AC20: =VLOOKUP(AC$11,base!$A$8:$R$46,$A20,FALSE) -> 22448568 | AD20: =VLOOKUP(AD$11,base!$A$8:$R$46,$A20,FALSE) -> 0 | AE20: =VLOOKUP(AE$11,base!$A$8:$R$46,$A20,FALSE) -> 0 | AF20: =VLOOKUP(AF$11,base!$A$8:$R$46,$A20,FALSE) -> 0 | AG20: =VLOOKUP(AG$11,base!$A$8:$R$46,$A20,FALSE) -> 0 | AH20: =VLOOKUP(AH$11,base!$A$8:$R$46,$A20,FALSE) -> 297 | AI20: =VLOOKUP(AI$11,base!$A$8:$R$46,$A20,FALSE) -> 0
A21: 11 | B21: Fondosmutuos | C21: Fondos Mutuos | D21: =VLOOKUP(D$11,base!$A$8:$R$46,$A21,FALSE) -> 0 | E21: =VLOOKUP(E$11,base!$A$8:$R$46,$A21,FALSE) -> 0 | F21: =VLOOKUP(F$11,base!$A$8:$R$46,$A21,FALSE) -> 10342575 | G21: =VLOOKUP(G$11,base!$A$8:$R$46,$A21,FALSE) -> 6265126 | H21: =VLOOKUP(H$11,base!$A$8:$R$46,$A21,FALSE) -> 0 | I21: =VLOOKUP(I$11,base!$A$8:$R$46,$A21,FALSE) -> 0 | J21: =VLOOKUP(J$11,base!$A$8:$R$46,$A21,FALSE) -> 56219 | K21: =VLOOKUP(K$11,base!$A$8:$R$46,$A21,FALSE) -> 1350998 | L21: =VLOOKUP(L$11,base!$A$8:$R$46,$A21,FALSE) -> 0 | M21: =VLOOKUP(M$11,base!$A$8:$R$46,$A21,FALSE) -> 0 | N21: =VLOOKUP(N$11,base!$A$8:$R$46,$A21,FALSE) -> 0 | O21: =VLOOKUP(O$11,base!$A$8:$R$46,$A21,FALSE) -> 0 | P21: =VLOOKUP(P$11,base!$A$8:$R$46,$A21,FALSE) -> 0 | Q21: =VLOOKUP(Q$11,base!$A$8:$R$46,$A21,FALSE) -> 0 | R21: =VLOOKUP(R$11,base!$A$8:$R$46,$A21,FALSE) -> 0 | S21: =VLOOKUP(S$11,base!$A$8:$R$46,$A21,FALSE) -> 0 | T21: =VLOOKUP(T$11,base!$A$8:$R$46,$A21,FALSE) -> 1463029 | U21: =VLOOKUP(U$11,base!$A$8:$R$46,$A21,FALSE) -> 10178936 | V21: =VLOOKUP(V$11,base!$A$8:$R$46,$A21,FALSE) -> 1013144 | W21: =VLOOKUP(W$11,base!$A$8:$R$46,$A21,FALSE) -> 1985067 | X21: =VLOOKUP(X$11,base!$A$8:$R$46,$A21,FALSE) -> 1055 | Y21: =VLOOKUP(Y$11,base!$A$8:$R$46,$A21,FALSE) -> 20874 | Z21: =VLOOKUP(Z$11,base!$A$8:$R$46,$A21,FALSE) -> 7537585 | AA21: =VLOOKUP(AA$11,base!$A$8:$R$46,$A21,FALSE) -> 8520815 | AB21: =VLOOKUP(AB$11,base!$A$8:$R$46,$A21,FALSE) -> 68298 | AC21: =VLOOKUP(AC$11,base!$A$8:$R$46,$A21,FALSE) -> 8112525 | AD21: =VLOOKUP(AD$11,base!$A$8:$R$46,$A21,FALSE) -> 1858039 | AE21: =VLOOKUP(AE$11,base!$A$8:$R$46,$A21,FALSE) -> 0 | AF21: =VLOOKUP(AF$11,base!$A$8:$R$46,$A21,FALSE) -> 3006 | AG21: =VLOOKUP(AG$11,base!$A$8:$R$46,$A21,FALSE) -> 4588706 | AH21: =VLOOKUP(AH$11,base!$A$8:$R$46,$A21,FALSE) -> 0 | AI21: =VLOOKUP(AI$11,base!$A$8:$R$46,$A21,FALSE) -> 372064
A22: 12 | B22: FondoinversiÃ³n | C22: Fondos de Inversión | D22: =VLOOKUP(D$11,base!$A$8:$R$46,$A22,FALSE) -> 0 | E22: =VLOOKUP(E$11,base!$A$8:$R$46,$A22,FALSE) -> 1060012 | F22: =VLOOKUP(F$11,base!$A$8:$R$46,$A22,FALSE) -> 29265700 | G22: =VLOOKUP(G$11,base!$A$8:$R$46,$A22,FALSE) -> 0 | H22: =VLOOKUP(H$11,base!$A$8:$R$46,$A22,FALSE) -> 0 | I22: =VLOOKUP(I$11,base!$A$8:$R$46,$A22,FALSE) -> 0 | J22: =VLOOKUP(J$11,base!$A$8:$R$46,$A22,FALSE) -> 0 | K22: =VLOOKUP(K$11,base!$A$8:$R$46,$A22,FALSE) -> 0 | L22: =VLOOKUP(L$11,base!$A$8:$R$46,$A22,FALSE) -> 0 | M22: =VLOOKUP(M$11,base!$A$8:$R$46,$A22,FALSE) -> 0 | N22: =VLOOKUP(N$11,base!$A$8:$R$46,$A22,FALSE) -> 0 | O22: =VLOOKUP(O$11,base!$A$8:$R$46,$A22,FALSE) -> 0 | P22: =VLOOKUP(P$11,base!$A$8:$R$46,$A22,FALSE) -> 0 | Q22: =VLOOKUP(Q$11,base!$A$8:$R$46,$A22,FALSE) -> 0 | R22: =VLOOKUP(R$11,base!$A$8:$R$46,$A22,FALSE) -> 0 | S22: =VLOOKUP(S$11,base!$A$8:$R$46,$A22,FALSE) -> 0 | T22: =VLOOKUP(T$11,base!$A$8:$R$46,$A22,FALSE) -> 0 | U22: =VLOOKUP(U$11,base!$A$8:$R$46,$A22,FALSE) -> 7678423 | V22: =VLOOKUP(V$11,base!$A$8:$R$46,$A22,FALSE) -> 0 | W22: =VLOOKUP(W$11,base!$A$8:$R$46,$A22,FALSE) -> 0 | X22: =VLOOKUP(X$11,base!$A$8:$R$46,$A22,FALSE) -> 586568 | Y22: =VLOOKUP(Y$11,base!$A$8:$R$46,$A22,FALSE) -> 0 | Z22: =VLOOKUP(Z$11,base!$A$8:$R$46,$A22,FALSE) -> 0 | AA22: =VLOOKUP(AA$11,base!$A$8:$R$46,$A22,FALSE) -> 0 | AB22: =VLOOKUP(AB$11,base!$A$8:$R$46,$A22,FALSE) -> 0 | AC22: =VLOOKUP(AC$11,base!$A$8:$R$46,$A22,FALSE) -> 0 | AD22: =VLOOKUP(AD$11,base!$A$8:$R$46,$A22,FALSE) -> 0 | AE22: =VLOOKUP(AE$11,base!$A$8:$R$46,$A22,FALSE) -> 4988441 | AF22: =VLOOKUP(AF$11,base!$A$8:$R$46,$A22,FALSE) -> 0 | AG22: =VLOOKUP(AG$11,base!$A$8:$R$46,$A22,FALSE) -> 0 | AH22: =VLOOKUP(AH$11,base!$A$8:$R$46,$A22,FALSE) -> 2026602 | AI22: =VLOOKUP(AI$11,base!$A$8:$R$46,$A22,FALSE) -> 3139930
A23: 13 | B23: InversiÃ³nexterior | C23: Inversión Exterior | D23: =VLOOKUP(D$11,base!$A$8:$R$46,$A23,FALSE) -> 0 | E23: =VLOOKUP(E$11,base!$A$8:$R$46,$A23,FALSE) -> 1707087 | F23: =VLOOKUP(F$11,base!$A$8:$R$46,$A23,FALSE) -> 46223396 | G23: =VLOOKUP(G$11,base!$A$8:$R$46,$A23,FALSE) -> 0 | H23: =VLOOKUP(H$11,base!$A$8:$R$46,$A23,FALSE) -> 0 | I23: =VLOOKUP(I$11,base!$A$8:$R$46,$A23,FALSE) -> 0 | J23: =VLOOKUP(J$11,base!$A$8:$R$46,$A23,FALSE) -> 0 | K23: =VLOOKUP(K$11,base!$A$8:$R$46,$A23,FALSE) -> 2345686 | L23: =VLOOKUP(L$11,base!$A$8:$R$46,$A23,FALSE) -> 0 | M23: =VLOOKUP(M$11,base!$A$8:$R$46,$A23,FALSE) -> 0 | N23: =VLOOKUP(N$11,base!$A$8:$R$46,$A23,FALSE) -> 41700429 | O23: =VLOOKUP(O$11,base!$A$8:$R$46,$A23,FALSE) -> 0 | P23: =VLOOKUP(P$11,base!$A$8:$R$46,$A23,FALSE) -> 0 | Q23: =VLOOKUP(Q$11,base!$A$8:$R$46,$A23,FALSE) -> 0 | R23: =VLOOKUP(R$11,base!$A$8:$R$46,$A23,FALSE) -> 0 | S23: =VLOOKUP(S$11,base!$A$8:$R$46,$A23,FALSE) -> 0 | T23: =VLOOKUP(T$11,base!$A$8:$R$46,$A23,FALSE) -> 0 | U23: =VLOOKUP(U$11,base!$A$8:$R$46,$A23,FALSE) -> 0 | V23: =VLOOKUP(V$11,base!$A$8:$R$46,$A23,FALSE) -> 0 | W23: =VLOOKUP(W$11,base!$A$8:$R$46,$A23,FALSE) -> 0 | X23: =VLOOKUP(X$11,base!$A$8:$R$46,$A23,FALSE) -> 408004 | Y23: =VLOOKUP(Y$11,base!$A$8:$R$46,$A23,FALSE) -> 0 | Z23: =VLOOKUP(Z$11,base!$A$8:$R$46,$A23,FALSE) -> 0 | AA23: =VLOOKUP(AA$11,base!$A$8:$R$46,$A23,FALSE) -> 0 | AB23: =VLOOKUP(AB$11,base!$A$8:$R$46,$A23,FALSE) -> 0 | AC23: =VLOOKUP(AC$11,base!$A$8:$R$46,$A23,FALSE) -> 0 | AD23: =VLOOKUP(AD$11,base!$A$8:$R$46,$A23,FALSE) -> 0 | AE23: =VLOOKUP(AE$11,base!$A$8:$R$46,$A23,FALSE) -> 0 | AF23: =VLOOKUP(AF$11,base!$A$8:$R$46,$A23,FALSE) -> 0 | AG23: =VLOOKUP(AG$11,base!$A$8:$R$46,$A23,FALSE) -> 0 | AH23: =VLOOKUP(AH$11,base!$A$8:$R$46,$A23,FALSE) -> 4718115 | AI23: =VLOOKUP(AI$11,base!$A$8:$R$46,$A23,FALSE) -> 4340566
A24: 14 | B24: Cuentascorrientes | C24: Cuentas Corrientes | D24: =VLOOKUP(D$11,base!$A$8:$R$46,$A24,FALSE) -> 2994130 | E24: =VLOOKUP(E$11,base!$A$8:$R$46,$A24,FALSE) -> 3871053 | F24: =VLOOKUP(F$11,base!$A$8:$R$46,$A24,FALSE) -> 17074000 | G24: =VLOOKUP(G$11,base!$A$8:$R$46,$A24,FALSE) -> 1642345 | H24: =VLOOKUP(H$11,base!$A$8:$R$46,$A24,FALSE) -> 7021775 | I24: =VLOOKUP(I$11,base!$A$8:$R$46,$A24,FALSE) -> 20717440 | J24: =VLOOKUP(J$11,base!$A$8:$R$46,$A24,FALSE) -> 739674 | K24: =VLOOKUP(K$11,base!$A$8:$R$46,$A24,FALSE) -> 2694634 | L24: =VLOOKUP(L$11,base!$A$8:$R$46,$A24,FALSE) -> 844397 | M24: =VLOOKUP(M$11,base!$A$8:$R$46,$A24,FALSE) -> 7130829 | N24: =VLOOKUP(N$11,base!$A$8:$R$46,$A24,FALSE) -> 5211447 | O24: =VLOOKUP(O$11,base!$A$8:$R$46,$A24,FALSE) -> 47527213 | P24: =VLOOKUP(P$11,base!$A$8:$R$46,$A24,FALSE) -> 4148574 | Q24: =VLOOKUP(Q$11,base!$A$8:$R$46,$A24,FALSE) -> 39719977 | R24: =VLOOKUP(R$11,base!$A$8:$R$46,$A24,FALSE) -> 3101009 | S24: =VLOOKUP(S$11,base!$A$8:$R$46,$A24,FALSE) -> 34665202 | T24: =VLOOKUP(T$11,base!$A$8:$R$46,$A24,FALSE) -> 18653 | U24: =VLOOKUP(U$11,base!$A$8:$R$46,$A24,FALSE) -> 21431204 | V24: =VLOOKUP(V$11,base!$A$8:$R$46,$A24,FALSE) -> 7089008 | W24: =VLOOKUP(W$11,base!$A$8:$R$46,$A24,FALSE) -> 1730335 | X24: =VLOOKUP(X$11,base!$A$8:$R$46,$A24,FALSE) -> 48316 | Y24: =VLOOKUP(Y$11,base!$A$8:$R$46,$A24,FALSE) -> 4025369 | Z24: =VLOOKUP(Z$11,base!$A$8:$R$46,$A24,FALSE) -> 18055040 | AA24: =VLOOKUP(AA$11,base!$A$8:$R$46,$A24,FALSE) -> 6049996 | AB24: =VLOOKUP(AB$11,base!$A$8:$R$46,$A24,FALSE) -> 138378 | AC24: =VLOOKUP(AC$11,base!$A$8:$R$46,$A24,FALSE) -> 7003924 | AD24: =VLOOKUP(AD$11,base!$A$8:$R$46,$A24,FALSE) -> 21852896 | AE24: =VLOOKUP(AE$11,base!$A$8:$R$46,$A24,FALSE) -> 17513986 | AF24: =VLOOKUP(AF$11,base!$A$8:$R$46,$A24,FALSE) -> 3774253 | AG24: =VLOOKUP(AG$11,base!$A$8:$R$46,$A24,FALSE) -> 2000792 | AH24: =VLOOKUP(AH$11,base!$A$8:$R$46,$A24,FALSE) -> 30866668 | AI24: =VLOOKUP(AI$11,base!$A$8:$R$46,$A24,FALSE) -> 982386
A25: 15 | B25: Inversionesinmobiliarias | C25: Inversiones Inmobiliarias | D25: =VLOOKUP(D$11,base!$A$8:$R$46,$A25,FALSE) -> 0 | E25: =VLOOKUP(E$11,base!$A$8:$R$46,$A25,FALSE) -> 2912678 | F25: =VLOOKUP(F$11,base!$A$8:$R$46,$A25,FALSE) -> 30617405 | G25: =VLOOKUP(G$11,base!$A$8:$R$46,$A25,FALSE) -> 8274136 | H25: =VLOOKUP(H$11,base!$A$8:$R$46,$A25,FALSE) -> 531949 | I25: =VLOOKUP(I$11,base!$A$8:$R$46,$A25,FALSE) -> 1606320 | J25: =VLOOKUP(J$11,base!$A$8:$R$46,$A25,FALSE) -> 0 | K25: =VLOOKUP(K$11,base!$A$8:$R$46,$A25,FALSE) -> 4435340 | L25: =VLOOKUP(L$11,base!$A$8:$R$46,$A25,FALSE) -> 0 | M25: =VLOOKUP(M$11,base!$A$8:$R$46,$A25,FALSE) -> 1076677 | N25: =VLOOKUP(N$11,base!$A$8:$R$46,$A25,FALSE) -> 5584028 | O25: =VLOOKUP(O$11,base!$A$8:$R$46,$A25,FALSE) -> 0 | P25: =VLOOKUP(P$11,base!$A$8:$R$46,$A25,FALSE) -> 0 | Q25: =VLOOKUP(Q$11,base!$A$8:$R$46,$A25,FALSE) -> 7149879 | R25: =VLOOKUP(R$11,base!$A$8:$R$46,$A25,FALSE) -> 1146979 | S25: =VLOOKUP(S$11,base!$A$8:$R$46,$A25,FALSE) -> 8253800 | T25: =VLOOKUP(T$11,base!$A$8:$R$46,$A25,FALSE) -> 989200 | U25: =VLOOKUP(U$11,base!$A$8:$R$46,$A25,FALSE) -> 1294600 | V25: =VLOOKUP(V$11,base!$A$8:$R$46,$A25,FALSE) -> 0 | W25: =VLOOKUP(W$11,base!$A$8:$R$46,$A25,FALSE) -> 0 | X25: =VLOOKUP(X$11,base!$A$8:$R$46,$A25,FALSE) -> 0 | Y25: =VLOOKUP(Y$11,base!$A$8:$R$46,$A25,FALSE) -> 0 | Z25: =VLOOKUP(Z$11,base!$A$8:$R$46,$A25,FALSE) -> 0 | AA25: =VLOOKUP(AA$11,base!$A$8:$R$46,$A25,FALSE) -> 2380761 | AB25: =VLOOKUP(AB$11,base!$A$8:$R$46,$A25,FALSE) -> 0 | AC25: =VLOOKUP(AC$11,base!$A$8:$R$46,$A25,FALSE) -> 962657 | AD25: =VLOOKUP(AD$11,base!$A$8:$R$46,$A25,FALSE) -> 0 | AE25: =VLOOKUP(AE$11,base!$A$8:$R$46,$A25,FALSE) -> 5588907 | AF25: =VLOOKUP(AF$11,base!$A$8:$R$46,$A25,FALSE) -> 0 | AG25: =VLOOKUP(AG$11,base!$A$8:$R$46,$A25,FALSE) -> 0 | AH25: =VLOOKUP(AH$11,base!$A$8:$R$46,$A25,FALSE) -> 0 | AI25: =VLOOKUP(AI$11,base!$A$8:$R$46,$A25,FALSE) -> 2061568
A26: 16 | B26: PrÃ©stamos | C26: Préstamos | D26: =VLOOKUP(D$11,base!$A$8:$R$46,$A26,FALSE) -> 0 | E26: =VLOOKUP(E$11,base!$A$8:$R$46,$A26,FALSE) -> 0 | F26: =VLOOKUP(F$11,base!$A$8:$R$46,$A26,FALSE) -> 0 | G26: =VLOOKUP(G$11,base!$A$8:$R$46,$A26,FALSE) -> 0 | H26: =VLOOKUP(H$11,base!$A$8:$R$46,$A26,FALSE) -> 0 | I26: =VLOOKUP(I$11,base!$A$8:$R$46,$A26,FALSE) -> 0 | J26: =VLOOKUP(J$11,base!$A$8:$R$46,$A26,FALSE) -> 0 | K26: =VLOOKUP(K$11,base!$A$8:$R$46,$A26,FALSE) -> 0 | L26: =VLOOKUP(L$11,base!$A$8:$R$46,$A26,FALSE) -> 0 | M26: =VLOOKUP(M$11,base!$A$8:$R$46,$A26,FALSE) -> 0 | N26: =VLOOKUP(N$11,base!$A$8:$R$46,$A26,FALSE) -> 0 | O26: =VLOOKUP(O$11,base!$A$8:$R$46,$A26,FALSE) -> 0 | P26: =VLOOKUP(P$11,base!$A$8:$R$46,$A26,FALSE) -> 0 | Q26: =VLOOKUP(Q$11,base!$A$8:$R$46,$A26,FALSE) -> 0 | R26: =VLOOKUP(R$11,base!$A$8:$R$46,$A26,FALSE) -> 0 | S26: =VLOOKUP(S$11,base!$A$8:$R$46,$A26,FALSE) -> 0 | T26: =VLOOKUP(T$11,base!$A$8:$R$46,$A26,FALSE) -> 0 | U26: =VLOOKUP(U$11,base!$A$8:$R$46,$A26,FALSE) -> 0 | V26: =VLOOKUP(V$11,base!$A$8:$R$46,$A26,FALSE) -> 0 | W26: =VLOOKUP(W$11,base!$A$8:$R$46,$A26,FALSE) -> 0 | X26: =VLOOKUP(X$11,base!$A$8:$R$46,$A26,FALSE) -> 0 | Y26: =VLOOKUP(Y$11,base!$A$8:$R$46,$A26,FALSE) -> 0 | Z26: =VLOOKUP(Z$11,base!$A$8:$R$46,$A26,FALSE) -> 0 | AA26: =VLOOKUP(AA$11,base!$A$8:$R$46,$A26,FALSE) -> 0 | AB26: =VLOOKUP(AB$11,base!$A$8:$R$46,$A26,FALSE) -> 0 | AC26: =VLOOKUP(AC$11,base!$A$8:$R$46,$A26,FALSE) -> 0 | AD26: =VLOOKUP(AD$11,base!$A$8:$R$46,$A26,FALSE) -> 0 | AE26: =VLOOKUP(AE$11,base!$A$8:$R$46,$A26,FALSE) -> 0 | AF26: =VLOOKUP(AF$11,base!$A$8:$R$46,$A26,FALSE) -> 0 | AG26: =VLOOKUP(AG$11,base!$A$8:$R$46,$A26,FALSE) -> 0 | AH26: =VLOOKUP(AH$11,base!$A$8:$R$46,$A26,FALSE) -> 0 | AI26: =VLOOKUP(AI$11,base!$A$8:$R$46,$A26,FALSE) -> 0
A27: 17 | B27: Otros(3) | C27: Otros | D27: =VLOOKUP(D$11,base!$A$8:$R$46,$A27,FALSE) -> 0 | E27: =VLOOKUP(E$11,base!$A$8:$R$46,$A27,FALSE) -> 1833 | F27: =VLOOKUP(F$11,base!$A$8:$R$46,$A27,FALSE) -> 4396963 | G27: =VLOOKUP(G$11,base!$A$8:$R$46,$A27,FALSE) -> 1387753 | H27: =VLOOKUP(H$11,base!$A$8:$R$46,$A27,FALSE) -> 33582 | I27: =VLOOKUP(I$11,base!$A$8:$R$46,$A27,FALSE) -> 1612805 | J27: =VLOOKUP(J$11,base!$A$8:$R$46,$A27,FALSE) -> 72585 | K27: =VLOOKUP(K$11,base!$A$8:$R$46,$A27,FALSE) -> 109419 | L27: =VLOOKUP(L$11,base!$A$8:$R$46,$A27,FALSE) -> 14096 | M27: =VLOOKUP(M$11,base!$A$8:$R$46,$A27,FALSE) -> 23469 | N27: =VLOOKUP(N$11,base!$A$8:$R$46,$A27,FALSE) -> 33297109 | O27: =VLOOKUP(O$11,base!$A$8:$R$46,$A27,FALSE) -> 954108 | P27: =VLOOKUP(P$11,base!$A$8:$R$46,$A27,FALSE) -> 346210 | Q27: =VLOOKUP(Q$11,base!$A$8:$R$46,$A27,FALSE) -> 1686536 | R27: =VLOOKUP(R$11,base!$A$8:$R$46,$A27,FALSE) -> 9430 | S27: =VLOOKUP(S$11,base!$A$8:$R$46,$A27,FALSE) -> 805626 | T27: =VLOOKUP(T$11,base!$A$8:$R$46,$A27,FALSE) -> 343 | U27: =VLOOKUP(U$11,base!$A$8:$R$46,$A27,FALSE) -> 883882 | V27: =VLOOKUP(V$11,base!$A$8:$R$46,$A27,FALSE) -> 0 | W27: =VLOOKUP(W$11,base!$A$8:$R$46,$A27,FALSE) -> 19488 | X27: =VLOOKUP(X$11,base!$A$8:$R$46,$A27,FALSE) -> 67799 | Y27: =VLOOKUP(Y$11,base!$A$8:$R$46,$A27,FALSE) -> 20425 | Z27: =VLOOKUP(Z$11,base!$A$8:$R$46,$A27,FALSE) -> 539899 | AA27: =VLOOKUP(AA$11,base!$A$8:$R$46,$A27,FALSE) -> 323818 | AB27: =VLOOKUP(AB$11,base!$A$8:$R$46,$A27,FALSE) -> 465836 | AC27: =VLOOKUP(AC$11,base!$A$8:$R$46,$A27,FALSE) -> 54479 | AD27: =VLOOKUP(AD$11,base!$A$8:$R$46,$A27,FALSE) -> 219831 | AE27: =VLOOKUP(AE$11,base!$A$8:$R$46,$A27,FALSE) -> 5069448 | AF27: =VLOOKUP(AF$11,base!$A$8:$R$46,$A27,FALSE) -> 227823 | AG27: =VLOOKUP(AG$11,base!$A$8:$R$46,$A27,FALSE) -> 9509 | AH27: =VLOOKUP(AH$11,base!$A$8:$R$46,$A27,FALSE) -> 1865929 | AI27: =VLOOKUP(AI$11,base!$A$8:$R$46,$A27,FALSE) -> -204683
A28: 18 | C28: Total | D28: =SUM(D13:D27) -> 10,950,136 | E28: =SUM(E13:E27) -> 20,137,439 | F28: 376,347,635 | G28: 192,463,720 | H28: 10,115,602 | I28: 217,185,217 | J28: 21,578,087 | K28: 53,505,384 | L28: 5,067,291 | M28: 30,753,091 | N28: 95,902,539 | O28: 48,481,321 | P28: 22,831,510 | Q28: 304,712,222 | R28: 4,257,418 | S28: 242,919,108 | T28: 19,954,875 | U28: 106,401,224 | V28: 9,766,815 | W28: 26,244,767 | X28: 16,795,258 | Y28: 15,925,647 | Z28: 39,766,884 | AA28: 46,549,490 | AB28: 8,888,748 | AC28: 115,101,006 | AD28: 23,930,766 | AE28: 207,625,122 | AF28: 14,620,308 | AG28: 28,056,183 | AH28: 119,518,771 | AI28: 117,680,829
C30: TIPO DE INSTRUMENTO | D30: =D12 -> Assurant Chile | E30: =E12 -> AVLA Crédito | F30: BCI Seguros | G30: BNP Paribas Cardif | H30: Cesce Chile | I30: Chubb Generales | J30: Coface Chile | K30: Consorcio Nacional | L30: Contempora | M30: Continental Crédito | N30: Continental Generales | O30: Everest Generales | P30: FID Chile | Q30: HDI Seguros | R30: Konsegur | S30: Liberty Seguros | T30: M. de Carabineros | U30: Mapfre | V30: MetLife Generales | W30: Orion Seguros | X30: Orsan Crédito | Y30: Porvenir | Z30: Reale Chile | AA30: Renta Nacional | AB30: Solunión Chile | AC30: Southbridge | AD30: Starr International | AE30: Suramericana | AF30: Unnio | AG30: Zenit Seguros | AH30: Zurich Chile | AI30: Zurich Santander | AJ30: TOTAL MERCADO | AK30: PART% MERCADO
C31: Renta Fija | D31: =SUM(D32:D36) -> 216,258 | E31: 194,029 | F31: 6,472,050 | G31: 4,751,874 | H31: 67,297 | I31: 5,252,841 | J31: 562,924 | K31: 1,136,560 | L31: =SUM(L32:L36) -> 114,403 | M31: 612,191 | N31: 262,135 | O31: 0 | P31: 498,425 | Q31: 6,960,185 | R31: 0 | S31: 5,410,406 | T31: 475,237 | U31: 1,764,739 | V31: 45,248 | W31: 611,858 | X31: 410,382 | Y31: 322,348 | Z31: 370,606 | AA31: 794,959 | AB31: 223,332 | AC31: 2,053,747 | AD31: 0 | AE31: 4,742,250 | AF31: 288,541 | AG31: 583,244 | AH31: 2,014,916 | AI31: 2,633,299 | AJ31: =SUM(D31:AI31) -> 49,846,283 | AK31: =AJ31/$AJ$50 -> 71.2%
C32: Instrumentos del Estado | D32: =OFFSET($C$12,MATCH($C32,$C$13:$C$27,0),MATCH(D$30,$D$12:$AI$12,0))*$H$9 -> 54,611 | E32: 98,090 | F32: 427,559 | G32: 1,605,015 | H32: 30,892 | I32: 1,764,356 | J32: 483,293 | K32: 0 | L32: 19,792 | M32: 0 | N32: =OFFSET($C$12,MATCH($C32,$C$13:$C$27,0),MATCH(N$30,$D$12:$AI$12,0))*$H$9 -> 0 | O32: 0 | P32: 215,474 | Q32: 1,185,387 | R32: 0 | S32: 1,662,425 | T32: 117,489 | U32: 5,909 | V32: 0 | W32: 45,021 | X32: =OFFSET($C$12,MATCH($C32,$C$13:$C$27,0),MATCH(X$30,$D$12:$AI$12,0))*$H$9 -> 121,058 | Y32: 105,718 | Z32: 219,105 | AA32: 146,809 | AB32: 187,989 | AC32: 730,076 | AD32: 0 | AE32: 907,519 | AF32: 288,541 | AG32: 15,472 | AH32: 418,550 | AI32: 584,781 | AJ32: 11,440,929 | AK32: 16.4%
C33: Depósitos a Plazo | D33: 161,648 | E33: 10,220 | F33: 716,269 | G33: 164,555 | H33: 0 | I33: 700,232 | J33: 0 | K33: 77,403 | L33: 0 | M33: 612,191 | N33: 262,135 | O33: 0 | P33: 28,289 | Q33: 89,800 | R33: 0 | S33: 403,075 | T33: 357,747 | U33: 43,873 | V33: 0 | W33: 48,670 | X33: 1,544 | Y33: 55,336 | Z33: 54,412 | AA33: 14,882 | AB33: 0 | AC33: 0 | AD33: 0 | AE33: 0 | AF33: 0 | AG33: 132,638 | AH33: 54,497 | AI33: 0 | AJ33: 3,989,416 | AK33: 5.7%
C34: Bonos Bancarios | D34: 0 | E34: 46,604 | F34: 4,826,607 | G34: 1,721,312 | H34: 18,377 | I34: 1,733,665 | J34: 65,285 | K34: 411,158 | L34: 61,237 | M34: 0 | N34: 0 | O34: 0 | P34: 180,270 | Q34: 4,150,983 | R34: 0 | S34: 3,040,374 | T34: 0 | U34: 1,265,793 | V34: 27,226 | W34: 341,800 | X34: 247,441 | Y34: 82,329 | Z34: 97,089 | AA34: 290,421 | AB34: 35,343 | AC34: 457,981 | AD34: 0 | AE34: 3,055,271 | AF34: 0 | AG34: 418,354 | AH34: 395,864 | AI34: 552,914 | AJ34: 23,523,699 | AK34: 33.6%
C35: Bonos y Debentures | D35: 0 | E35: 39,115 | F35: 501,614 | G35: 1,260,992 | H35: 18,028 | I35: 1,054,588 | J35: 14,347 | K35: 647,998 | L35: 33,374 | M35: 0 | N35: 0 | O35: 0 | P35: 74,392 | Q35: 1,534,015 | R35: 0 | S35: 304,533 | T35: 0 | U35: 449,164 | V35: 18,022 | W35: 176,366 | X35: 40,339 | Y35: 78,965 | Z35: 0 | AA35: 342,847 | AB35: 0 | AC35: 865,691 | AD35: 0 | AE35: 779,460 | AF35: 0 | AG35: 16,780 | AH35: 1,146,005 | AI35: 1,495,604 | AJ35: 10,892,239 | AK35: 15.6%
C36: Créditos Sindicados | D36: 0 | E36: 0 | F36: 0 | G36: 0 | H36: 0 | I36: 0 | J36: 0 | K36: 0 | L36: 0 | M36: 0 | N36: 0 | O36: 0 | P36: 0 | Q36: 0 | R36: 0 | S36: 0 | T36: 0 | U36: 0 | V36: 0 | W36: 0 | X36: 0 | Y36: 0 | Z36: 0 | AA36: 0 | AB36: 0 | AC36: 0 | AD36: 0 | AE36: 0 | AF36: 0 | AG36: 0 | AH36: 0 | AI36: 0 | AJ36: 0 | AK36: 0.0%
C37: Renta Variable | D37: =SUM(D38:D40) -> 0 | E37: 28,813 | F37: 1,085,458 | G37: 170,297 | H37: 0 | I37: 0 | J37: 1,528 | K37: 36,723 | L37: =SUM(L38:L40) -> 0 | M37: 0 | N37: 12,659 | O37: 0 | P37: 0 | Q37: 0 | R37: 0 | S37: 0 | T37: 39,768 | U37: 485,682 | V37: 27,539 | W37: 53,958 | X37: 31,896 | Y37: 567 | Z37: 204,885 | AA37: 231,611 | AB37: 1,856 | AC37: 830,705 | AD37: 50,505 | AE37: 135,595 | AF37: 82 | AG37: 124,729 | AH37: 55,095 | AI37: 95,462 | AJ37: 3,705,412 | AK37: 5.3%
C38: Acciones de S.A. | D38: =OFFSET($C$12,MATCH($C38,$C$13:$C$27,0),MATCH(D$30,$D$12:$AI$12,0))*$H$9 -> 0 | E38: 0 | F38: 8,835 | G38: 0 | H38: 0 | I38: 0 | J38: 0 | K38: 0 | L38: 0 | M38: 0 | N38: =OFFSET($C$12,MATCH($C38,$C$13:$C$27,0),MATCH(N$30,$D$12:$AI$12,0))*$H$9 -> 12,659 | O38: 0 | P38: 0 | Q38: 0 | R38: 0 | S38: 0 | T38: 0 | U38: 287 | V38: 0 | W38: 0 | X38: =OFFSET($C$12,MATCH($C38,$C$13:$C$27,0),MATCH(X$30,$D$12:$AI$12,0))*$H$9 -> 15,923 | Y38: 0 | Z38: 0 | AA38: 0 | AB38: 0 | AC38: 610,192 | AD38: 0 | AE38: 0 | AF38: 0 | AG38: 0 | AH38: 8 | AI38: 0 | AJ38: 647,905 | AK38: 0.9%
C39: Fondos Mutuos | D39: 0 | E39: 0 | F39: 281,130 | G39: 170,297 | H39: 0 | I39: 0 | J39: 1,528 | K39: 36,723 | L39: 0 | M39: 0 | N39: 0 | O39: 0 | P39: 0 | Q39: 0 | R39: 0 | S39: 0 | T39: 39,768 | U39: 276,682 | V39: 27,539 | W39: 53,958 | X39: 29 | Y39: 567 | Z39: 204,885 | AA39: 231,611 | AB39: 1,856 | AC39: 220,513 | AD39: 50,505 | AE39: 0 | AF39: 82 | AG39: 124,729 | AH39: 0 | AI39: 10,113 | AJ39: 1,732,513 | AK39: 2.5%
C40: Fondos de Inversión | D40: 0 | E40: 28,813 | F40: 795,494 | G40: 0 | H40: 0 | I40: 0 | J40: 0 | K40: 0 | L40: 0 | M40: 0 | N40: 0 | O40: 0 | P40: 0 | Q40: 0 | R40: 0 | S40: 0 | T40: 0 | U40: 208,713 | V40: 0 | W40: 0 | X40: 15,944 | Y40: 0 | Z40: 0 | AA40: 0 | AB40: 0 | AC40: 0 | AD40: 0 | AE40: 135,595 | AF40: 0 | AG40: 0 | AH40: 55,087 | AI40: 85,349 | AJ40: 1,324,994 | AK40: 1.9%
C41: Inversión Exterior | D41: 0 | E41: 46,402 | F41: 1,256,434 | G41: 0 | H41: 0 | I41: 0 | J41: 0 | K41: 63,760 | L41: 0 | M41: 0 | N41: 1,133,492 | O41: 0 | P41: 0 | Q41: 0 | R41: 0 | S41: 0 | T41: 0 | U41: 0 | V41: 0 | W41: 0 | X41: 11,090 | Y41: 0 | Z41: 0 | AA41: 0 | AB41: 0 | AC41: 0 | AD41: 0 | AE41: 0 | AF41: 0 | AG41: 0 | AH41: 128,247 | AI41: 117,984 | AJ41: 2,757,408 | AK41: 3.9%
C42: Inversiones Inmobiliarias | D42: =SUM(D43:D45) -> 0 | E42: 172,856 | F42: 832,235 | G42: 226,971 | H42: 15,886 | I42: 43,663 | J42: 0 | K42: 141,110 | L42: =SUM(L43:L45) -> 0 | M42: 29,266 | N42: 151,784 | O42: 0 | P42: 0 | Q42: 196,931 | R42: 31,177 | S42: 228,406 | T42: 26,888 | U42: 35,190 | V42: 0 | W42: =SUM(W43:W45) -> 0 | X42: 0 | Y42: 0 | Z42: 0 | AA42: 65,476 | AB42: 0 | AC42: 52,338 | AD42: 0 | AE42: 151,916 | AF42: 0 | AG42: 0 | AH42: 160,744 | AI42: 330,889 | AJ42: 2,893,725 | AK42: 4.1%
C43: Bienes Raíces y Leasing | D43: =OFFSET($C$12,MATCH($C42,$C$13:$C$27,0),MATCH(D$30,$D$12:$AI$12,0))*$H$9 -> 0 | E43: 79,172 | F43: 832,235 | G43: 224,906 | H43: 14,459 | I43: 43,663 | J43: 0 | K43: 120,560 | L43: 0 | M43: 29,266 | N43: 151,784 | O43: 0 | P43: 0 | Q43: 194,346 | R43: 31,177 | S43: 224,353 | T43: 26,888 | U43: 35,190 | V43: 0 | W43: 0 | X43: 0 | Y43: 0 | Z43: 0 | AA43: 64,713 | AB43: 0 | AC43: 26,167 | AD43: 0 | AE43: 151,916 | AF43: 0 | AG43: 0 | AH43: 0 | AI43: 56,037 | AJ43: 2,306,832 | AK43: 3.3%
C44: Letras Hipotecarias | D44: =OFFSET($C$12,MATCH($C44,$C$13:$C$27,0),MATCH(D$30,$D$12:$AI$12,0))*$H$9 -> 0 | E44: 0 | F44: 0 | G44: 120 | H44: 1,426 | I44: 0 | J44: 0 | K44: 20,549 | L44: 0 | M44: 0 | N44: =OFFSET($C$12,MATCH($C44,$C$13:$C$27,0),MATCH(N$30,$D$12:$AI$12,0))*$H$9 -> 0 | O44: 0 | P44: 0 | Q44: 2,585 | R44: 0 | S44: 4,053 | T44: 0 | U44: 0 | V44: 0 | W44: 0 | X44: =OFFSET($C$12,MATCH($C44,$C$13:$C$27,0),MATCH(X$30,$D$12:$AI$12,0))*$H$9 -> 0 | Y44: 0 | Z44: 0 | AA44: 763 | AB44: 0 | AC44: 0 | AD44: 0 | AE44: 0 | AF44: 0 | AG44: 0 | AH44: 0 | AI44: 2,904 | AJ44: 32,401 | AK44: 0.0%
C45: Mutuos Hipotecarios | D45: 0 | E45: 93,684 | F45: 0 | G45: 1,945 | H45: 0 | I45: 0 | J45: 0 | K45: 0 | L45: 0 | M45: 0 | N45: 0 | O45: 0 | P45: 0 | Q45: 0 | R45: 0 | S45: 0 | T45: 0 | U45: 0 | V45: 0 | W45: 0 | X45: 0 | Y45: 0 | Z45: 0 | AA45: 0 | AB45: 0 | AC45: 26,171 | AD45: 0 | AE45: 0 | AF45: 0 | AG45: 0 | AH45: 160,744 | AI45: 271,948 | AJ45: 554,492 | AK45: 0.8%
C46: Otros | D46: =SUM(D47:D49) -> 81,386 | E46: 105,272 | F46: 583,619 | G46: 82,363 | H46: 191,777 | I46: 606,976 | J46: 22,079 | K46: 76,219 | L46: =SUM(L47:L49) -> 23,335 | M46: 194,466 | N46: 1,046,731 | O46: 1,317,808 | P46: 122,176 | Q46: 1,125,502 | R46: 84,547 | S46: 964,160 | T46: 516 | U46: 606,564 | V46: 192,692 | W46: 47,563 | X46: 3,156 | Y46: 109,972 | Z46: 505,443 | AA46: 173,252 | AB46: 16,424 | AC46: 191,860 | AD46: 599,976 | AE46: 613,858 | AF46: 108,784 | AG46: 54,644 | AH46: 889,730 | AI46: 21,139 | AJ46: 10,763,989 | AK46: 15.4%
C47: Cuentas Corrientes | D47: =OFFSET($C$12,MATCH($C47,$C$13:$C$27,0),MATCH(D$30,$D$12:$AI$12,0))*$H$9 -> 81,386 | E47: 105,222 | F47: 464,102 | G47: 44,642 | H47: 190,864 | I47: 563,137 | J47: 20,106 | K47: 73,245 | L47: 22,952 | M47: 193,829 | N47: =OFFSET($C$12,MATCH($C47,$C$13:$C$27,0),MATCH(N$30,$D$12:$AI$12,0))*$H$9 -> 141,656 | O47: 1,291,874 | P47: 112,766 | Q47: 1,079,659 | R47: 84,291 | S47: 942,262 | T47: 507 | U47: 582,538 | V47: 192,692 | W47: 47,034 | X47: =OFFSET($C$12,MATCH($C47,$C$13:$C$27,0),MATCH(X$30,$D$12:$AI$12,0))*$H$9 -> 1,313 | Y47: 109,417 | Z47: 490,768 | AA47: 164,450 | AB47: 3,761 | AC47: 190,379 | AD47: 594,000 | AE47: 476,061 | AF47: 102,591 | AG47: 54,385 | AH47: 839,011 | AI47: 26,703 | AJ47: 9,287,601 | AK47: 13.3%
C48: Préstamos | D48: 0 | E48: 0 | F48: 0 | G48: 0 | H48: 0 | I48: 0 | J48: 0 | K48: 0 | L48: 0 | M48: 0 | N48: 0 | O48: 0 | P48: 0 | Q48: 0 | R48: 0 | S48: 0 | T48: 0 | U48: 0 | V48: 0 | W48: 0 | X48: 0 | Y48: 0 | Z48: 0 | AA48: 0 | AB48: 0 | AC48: 0 | AD48: 0 | AE48: 0 | AF48: 0 | AG48: 0 | AH48: 0 | AI48: 0 | AJ48: 0 | AK48: 0.0%
C49: Otros | D49: 0 | E49: 50 | F49: 119,517 | G49: 37,722 | H49: 913 | I49: 43,839 | J49: 1,973 | K49: 2,974 | L49: 383 | M49: 638 | N49: 905,074 | O49: 25,934 | P49: 9,411 | Q49: 45,843 | R49: 256 | S49: 21,898 | T49: 9 | U49: 24,025 | V49: 0 | W49: 530 | X49: 1,843 | Y49: 555 | Z49: 14,675 | AA49: 8,802 | AB49: 12,662 | AC49: 1,481 | AD49: 5,975 | AE49: 137,797 | AF49: 6,193 | AG49: 258 | AH49: 50,719 | AI49: -5,564 | AJ49: 1,476,387 | AK49: 2.1%
C50: Total | D50: =SUM(D31,D37,D41:D42,D46) -> 297,644 | E50: 547,371 | F50: 10,229,796 | G50: 5,231,505 | H50: 274,960 | I50: 5,903,479 | J50: 586,531 | K50: 1,454,371 | L50: 137,738 | M50: 835,924 | N50: 2,606,801 | O50: =SUM(O31,O37,O41:O42,O46) -> 1,317,808 | P50: 620,601 | Q50: 8,282,618 | R50: 115,724 | S50: 6,602,972 | T50: 542,409 | U50: 2,892,174 | V50: 265,479 | W50: 713,379 | X50: 456,525 | Y50: 432,887 | Z50: 1,080,934 | AA50: 1,265,298 | AB50: 241,612 | AC50: 3,128,649 | AD50: 650,481 | AE50: 5,643,619 | AF50: 397,406 | AG50: 762,617 | AH50: 3,248,732 | AI50: 3,198,773 | AJ50: =SUM(AJ31,AJ37,AJ41:AJ42,AJ46) -> 69,966,817 | AK50: 100.0%
D51: * Notas: Elaboración propia en base a información FECU. El ítem "Bienes Raíces y Leasing" equivale al ítem reportado en FECU como "Inversiones Inmobiliarias". "Otros" Incluye acciones de S.A. cerradas, muebles y útiles, caja y derechos por inversiones en instrumentos derivados.
D52: *Información descargada el 05-03-2024
C53: Seleccionar Cuenta a Graficar | D53: 2 | E53: 3 | F53: 4 | G53: 5 | H53: 6 | I53: 7 | J53: 8 | K53: 9 | L53: 10 | M53: 11 | N53: 12 | O53: 13 | P53: 14 | Q53: 15 | R53: 16 | S53: 17 | T53: 18 | U53: 19 | V53: 20 | W53: 21 | X53: 22 | Y53: 23 | Z53: 24 | AA53: 25 | AB53: 26 | AC53: 27 | AD53: 28 | AE53: 29 | AF53: 30 | AG53: 31 | AH53: 32 | AI53: 33
C54: Total | D54: =RANK(D55,$D$55:$AI$55,0)+COUNTIF($D$55:$AI$55,D55)-1 -> 27 | E54: 22 | F54: 1 | G54: 6 | H54: 28 | I54: 4 | J54: 21 | K54: 12 | L54: 31 | M54: 16 | N54: 11 | O54: 13 | P54: 20 | Q54: 2 | R54: 32 | S54: 3 | T54: 23 | U54: 10 | V54: 29 | W54: 18 | X54: 24 | Y54: 25 | Z54: 15 | AA54: 14 | AB54: 30 | AC54: 9 | AD54: 19 | AE54: 5 | AF54: 26 | AG54: 17 | AH54: 7 | AI54: 8
C55: Ordenado de Mayor a Menor | D55: =VLOOKUP($C$54,$C$31:$AI$50,D53,FALSE)+D58/10000000000 -> 297,644 | E55: 547,371 | F55: 10,229,796 | G55: 5,231,505 | H55: 274,960 | I55: 5,903,479 | J55: 586,531 | K55: 1,454,371 | L55: 137,738 | M55: 835,924 | N55: 2,606,801 | O55: 1,317,808 | P55: 620,601 | Q55: 8,282,618 | R55: 115,724 | S55: 6,602,972 | T55: 542,409 | U55: 2,892,174 | V55: 265,479 | W55: 713,379 | X55: 456,525 | Y55: 432,887 | Z55: 1,080,934 | AA55: 1,265,298 | AB55: 241,612 | AC55: 3,128,649 | AD55: 650,481 | AE55: 5,643,619 | AF55: 397,406 | AG55: 762,617 | AH55: 3,248,732 | AI55: 3,198,773
D56: =D30 -> Assurant Chile | E56: =E30 -> AVLA Crédito | F56: BCI Seguros | G56: BNP Paribas Cardif | H56: Cesce Chile | I56: Chubb Generales | J56: Coface Chile | K56: Consorcio Nacional | L56: Contempora | M56: Continental Crédito | N56: Continental Generales | O56: Everest Generales | P56: FID Chile | Q56: HDI Seguros | R56: Konsegur | S56: Liberty Seguros | T56: M. de Carabineros | U56: Mapfre | V56: MetLife Generales | W56: Orion Seguros | X56: Orsan Crédito | Y56: Porvenir | Z56: Reale Chile | AA56: Renta Nacional | AB56: Solunión Chile | AC56: Southbridge | AD56: Starr International | AE56: Suramericana | AF56: Unnio | AG56: Zenit Seguros | AH56: Zurich Chile | AI56: Zurich Santander
C57: Compañía a Destacar | D57: =IF($C$58=D56,D55,0) -> 297,644 | E57: =IF($C$58=E56,E55,0) -> 0 | F57: 0 | G57: 0 | H57: 0 | I57: 0 | J57: 0 | K57: 0 | L57: 0 | M57: 0 | N57: 0 | O57: 0 | P57: 0 | Q57: 0 | R57: 0 | S57: 0 | T57: 0 | U57: 0 | V57: 0 | W57: 0 | X57: 0 | Y57: 0 | Z57: 0 | AA57: 0 | AB57: 0 | AC57: 0 | AD57: 0 | AE57: 0 | AF57: 0 | AG57: 0 | AH57: 0 | AI57: 0
C58: Assurant Chile | D58: 1 | E58: 2 | F58: 3 | G58: 4 | H58: 5 | I58: 6 | J58: 7 | K58: 8 | L58: 9 | M58: 10 | N58: 11 | O58: 12 | P58: 13 | Q58: 15 | R58: 16 | S58: 17 | T58: 18 | U58: 19 | V58: 20 | W58: 21 | X58: 22 | Y58: 23 | Z58: 24 | AA58: 25 | AB58: 26 | AC58: 27 | AD58: 28 | AE58: 29 | AF58: 30 | AG58: 31 | AH58: 32 | AI58: 33
C59: Ordenado de Mayor a Menor | D59: =HLOOKUP(D58,$D$54:$AI$56,2,FALSE) -> 10,229,796 | E59: 8,282,618 | F59: 6,602,972 | G59: 5,903,479 | H59: 5,643,619 | I59: 5,231,505 | J59: 3,248,732 | K59: 3,198,773 | L59: 3,128,649 | M59: 2,892,174 | N59: 2,606,801 | O59: 1,454,371 | P59: 1,317,808 | Q59: 1,080,934 | R59: 835,924 | S59: 762,617 | T59: 713,379 | U59: 650,481 | V59: 620,601 | W59: 586,531 | X59: 547,371 | Y59: 542,409 | Z59: 456,525 | AA59: 432,887 | AB59: 397,406 | AC59: 297,644 | AD59: 274,960 | AE59: 265,479 | AF59: 241,612 | AG59: 137,738 | AH59: 115,724
C60: Orden Alfabético | D60: =HLOOKUP(D58,$D$54:$AI$56,3,FALSE) -> BCI Seguros | E60: HDI Seguros | F60: Liberty Seguros | G60: Chubb Generales | H60: Suramericana | I60: BNP Paribas Cardif | J60: Zurich Chile | K60: Zurich Santander | L60: Southbridge | M60: Mapfre | N60: Continental Generales | O60: Consorcio Nacional | P60: Everest Generales | Q60: Reale Chile | R60: Continental Crédito | S60: Zenit Seguros | T60: Orion Seguros | U60: Starr International | V60: FID Chile | W60: Coface Chile | X60: AVLA Crédito | Y60: M. de Carabineros | Z60: Orsan Crédito | AA60: Porvenir | AB60: Unnio | AC60: Assurant Chile | AD60: Cesce Chile | AE60: MetLife Generales | AF60: Solunión Chile | AG60: Contempora | AH60: Konsegur
D61: =IF($C$58=D60,D59,0) -> 0 | E61: 0 | F61: 0 | G61: 0 | H61: 0 | I61: 0 | J61: 0 | K61: 0 | L61: 0 | M61: 0 | N61: 0 | O61: 0 | P61: 0 | Q61: 0 | R61: 0 | S61: 0 | T61: 0 | U61: 0 | V61: 0 | W61: 0 | X61: 0 | Y61: 0 | Z61: 0 | AA61: 0 | AB61: 0 | AC61: 297,644 | AD61: 0 | AE61: 0 | AF61: 0 | AG61: 0 | AH61: 0
D63: =IF($C$55=$C$59,D60,D56) -> BCI Seguros | E63: HDI Seguros | F63: Liberty Seguros | G63: Chubb Generales | H63: Suramericana | I63: BNP Paribas Cardif | J63: Zurich Chile | K63: Zurich Santander | L63: Southbridge | M63: Mapfre | N63: Continental Generales | O63: Consorcio Nacional | P63: Everest Generales | Q63: Reale Chile | R63: Continental Crédito | S63: Zenit Seguros | T63: Orion Seguros | U63: Starr International | V63: FID Chile | W63: Coface Chile | X63: AVLA Crédito | Y63: M. de Carabineros | Z63: Orsan Crédito | AA63: Porvenir | AB63: Unnio | AC63: Assurant Chile | AD63: Cesce Chile | AE63: MetLife Generales | AF63: Solunión Chile | AG63: Contempora | AH63: Konsegur
D64: =IF($C$55=$C$59,D59,D55) -> 10,229,796 | E64: 8,282,618 | F64: 6,602,972 | G64: 5,903,479 | H64: 5,643,619 | I64: 5,231,505 | J64: 3,248,732 | K64: 3,198,773 | L64: 3,128,649 | M64: 2,892,174 | N64: 2,606,801 | O64: 1,454,371 | P64: 1,317,808 | Q64: 1,080,934 | R64: 835,924 | S64: 762,617 | T64: 713,379 | U64: 650,481 | V64: 620,601 | W64: 586,531 | X64: 547,371 | Y64: 542,409 | Z64: 456,525 | AA64: 432,887 | AB64: 397,406 | AC64: 297,644 | AD64: 274,960 | AE64: 265,479 | AF64: 241,612 | AG64: 137,738 | AH64: 115,724
D65: =IF($C$55=$C$59,D61,D57) -> 0 | E65: 0 | F65: 0 | G65: 0 | H65: 0 | I65: 0 | J65: 0 | K65: 0 | L65: 0 | M65: 0 | N65: 0 | O65: 0 | P65: 0 | Q65: 0 | R65: 0 | S65: 0 | T65: 0 | U65: 0 | V65: 0 | W65: 0 | X65: 0 | Y65: 0 | Z65: 0 | AA65: 0 | AB65: 0 | AC65: 297,644 | AD65: 0 | AE65: 0 | AF65: 0 | AG65: 0 | AH65: 0

Sheet base (hidden)
A1: COMISIÓN PARA EL MERCADO FINANCIERO
A2: Tipo de compañía: CIAS. DE SEGUROS GENERALES, CIAS. REASEGURADORAS GENERALES Y CIAS. DE SEGUROS CRéDITO
A3: Fecha: DICIEMBRE 2022
A6: Mantener esta columna siempre | B6: TipodecompaÃ±Ã­a | C6: InstrumentosdelEstado | D6: DepÃ³sitosaplazo | E6: Bonosbancarios | F6: Letrashipotecarias | G6: Bonosydebentures | H6: CrÃ©ditossindicados | I6: Mutuoshipotecarios | J6: AccionesdeS.A. | K6: Fondosmutuos | L6: FondoinversiÃ³n | M6: InversiÃ³nexterior | N6: Cuentascorrientes | O6: Inversionesinmobiliarias | P6: PrÃ©stamos | Q6: Otros(3) | R6: TOTAL
A7: Razón social | B7: TipodecompaÃ±Ã­a | C7: InstrumentosdelEstado | D7: DepÃ³sitosaplazo | E7: Bonosbancarios | F7: Letrashipotecarias | G7: Bonosydebentures | H7: CrÃ©ditossindicados | I7: Mutuoshipotecarios | J7: AccionesdeS.A. | K7: Fondosmutuos | L7: FondoinversiÃ³n | M7: InversiÃ³nexterior | N7: Cuentascorrientes | O7: Inversionesinmobiliarias | P7: PrÃ©stamos | Q7: Otros(3) | R7: TOTAL
A8: ASSURANT Chile | B8: ASSURANT | C8: 2009088 | D8: 5946918 | N8: 2994130 | R8: 10950136
A9: BCI Seguros | B9: BCI | C9: 15729621 | D9: 26351092 | E9: 177567785 | G9: 18454075 | J9: 325023 | K9: 10342575 | L9: 29265700 | M9: 46223396 | N9: 17074000 | O9: 30617405 | Q9: 4396963 | R9: 376347635
A10: BNP Paribas Cardiff | B10: BNP | C10: 59047460 | D10: 6053867 | E10: 63325957 | F10: 4424 | G10: 46391105 | I10: 71547 | K10: 6265126 | N10: 1642345 | O10: 8274136 | Q10: 1387753 | R10: 192463720
A11: CHUBB GENERALES | B11: CHUBB GENERALES | C11: 64909526 | D11: 25761075 | E11: 63780443 | G11: 38797608 | N11: 20717440 | O11: 1606320 | Q11: 1612805 | R11: 217185217
A12: CONSORCIO NACIONAL | B12: CONSORCIO NACIONAL | D12: 2847612 | E12: 15126258 | F12: 756002 | G12: 23839435 | K12: 1350998 | M12: 2345686 | N12: 2694634 | O12: 4435340 | Q12: 109419 | R12: 53505384
A13: CONTEMPORA | B13: CONTEMPORA | C13: 728131 | E13: 2252869 | G13: 1227798 | N13: 844397 | Q13: 14096 | R13: 5067291
A14: CONTINENTAL GENERALES | B14: CONTINENTAL | D14: 22522116 | N14: 7130829 | O14: 1076677 | Q14: 23469 | R14: 30753091
A15: EVEREST | B15: EVEREST | N15: 47527213 | Q15: 954108 | R15: 48481321
A16: FID CHILE | B16: FID | C16: 7927153 | D16: 1040749 | E16: 6632005 | G16: 2736819 | N16: 4148574 | Q16: 346210 | R16: 22831510
A17: HDI SEGUROS | B17: HDI | C17: 43609614 | D17: 3303685 | E17: 152712019 | F17: 95093 | G17: 56435419 | N17: 39719977 | O17: 7149879 | Q17: 1686536 | R17: 304712222
A18: LIBERTY SEGUROS | B18: LIBERTY | C18: 61159563 | D18: 14828856 | E18: 111853403 | F18: 149098 | G18: 11203560 | N18: 34665202 | O18: 8253800 | Q18: 805626 | R18: 242919108
A19: MAPFRE | B19: MAPFRE | C19: 217375 | D19: 1614051 | E19: 46567715 | G19: 16524469 | J19: 10569 | K19: 10178936 | L19: 7678423 | N19: 21431204 | O19: 1294600 | Q19: 883882 | R19: 106401224
A20: METLIFE GENERALES | B20: METLIFE GENERALES | E20: 1001645 | G20: 663018 | K20: 1013144 | N20: 7089008 | R20: 9766815
A21: MUT DE CARABINEROS | B21: MUT DE CARABINEROS | C21: 4322358 | D21: 13161292 | K21: 1463029 | N21: 18653 | O21: 989200 | Q21: 343 | R21: 19954875
A22: ORION seguros | B22: ORION | C22: 1656306 | D22: 1790548 | E22: 12574616 | G22: 6488407 | K22: 1985067 | N22: 1730335 | Q22: 19488 | R22: 26244767
A23: PORVENIR | B23: PORVENIR | C23: 3889309 | D23: 2035777 | E23: 3028818 | G23: 2905075 | K23: 20874 | N23: 4025369 | Q23: 20425 | R23: 15925647
A24: REALE CHILE | B24: REALE | C24: 8060738 | D24: 2001793 | E24: 3571829 | K24: 7537585 | N24: 18055040 | Q24: 539899 | R24: 39766884
A25: RENTA NACIONAL | B25: RENTA NACIONAL | C25: 5400999 | D25: 547514 | E25: 10684393 | F25: 28072 | G25: 12613122 | K25: 8520815 | N25: 6049996 | O25: 2380761 | Q25: 323818 | R25: 46549490
A26: SOUTHBRIDGE | B26: SOUTHBRIDGE | C26: 26859019 | E26: 16848824 | G26: 31848201 | I26: 962809 | J26: 22448568 | K26: 8112525 | N26: 7003924 | O26: 962657 | Q26: 54479 | R26: 115101006
A27: STARR international | B27: STARR | K27: 1858039 | N27: 21852896 | Q27: 219831 | R27: 23930766
A28: SURAMERICANA | B28: SURAMERICANA G | C28: 33387047 | E28: 112401471 | G28: 28675822 | L28: 4988441 | N28: 17513986 | O28: 5588907 | Q28: 5069448 | R28: 207625122
A29: UNNIO | B29: UNNIO | C29: 10615226 | K29: 3006 | N29: 3774253 | Q29: 227823 | R29: 14620308
A30: ZENIT seguros | B30: ZENIT | C30: 569204 | D30: 4879679 | E30: 15390980 | G30: 617313 | K30: 4588706 | N30: 2000792 | Q30: 9509 | R30: 28056183
A31: ZURICH CHILE | B31: ZURICH CHILE G | C31: 15398171 | D31: 2004898 | E31: 14563600 | G31: 42160806 | I31: 5913685 | J31: 297 | L31: 2026602 | M31: 4718115 | N31: 30866668 | Q31: 1865929 | R31: 119518771
A32: ZURICH SANTANDER | B32: ZURICH SANTANDER | C32: 21513718 | E32: 20341351 | F32: 106831 | G32: 55022315 | I32: 10004783 | K32: 372064 | L32: 3139930 | M32: 4340566 | N32: 982386 | O32: 2061568 | Q32: -204683 | R32: 117680829
A33: AVLA crédito | B33: AVLA | C33: 3608677 | D33: 375977 | E33: 1714523 | G33: 1439025 | I33: 3446574 | L33: 1060012 | M33: 1707087 | N33: 3871053 | O33: 2912678 | Q33: 1833 | R33: 20137439
A34: CESCE CHILE | B34: CESCE | C34: 1136496 | E34: 676079 | F34: 52476 | G34: 663245 | N34: 7021775 | O34: 531949 | Q34: 33582 | R34: 10115602
A35: COFACE CHILE | B35: COFACE | C35: 17780023 | E35: 2401785 | G35: 527801 | K35: 56219 | N35: 739674 | Q35: 72585 | R35: 21578087
A36: CREDITO CONTINENTAL | B36: CREDITO CONTINENTAL | D36: 9643794 | J36: 465732 | M36: 41700429 | N36: 5211447 | O36: 5584028 | Q36: 33297109 | R36: 95902539
A37: KONSEGUR | B37: KONSEGUR | N37: 3101009 | O37: 1146979 | Q37: 9430 | R37: 4257418
A38: ORSAN | B38: ORSAN | C38: 4453663 | D38: 56786 | E38: 9103196 | G38: 1484061 | J38: 585810 | K38: 1055 | L38: 586568 | M38: 408004 | N38: 48316 | Q38: 67799 | R38: 16795258
A39: SOLUNION | B39: SOLUNION | C39: 6915977 | E39: 1300259 | K39: 68298 | N39: 138378 | Q39: 465836 | R39: 8888748
A43: TOTAL CIAS. DE SEGUROS CRéDITO
A44: TOTAL MERCADO
A47: (1) Tipo A=Seguros Generales; Tipo R=Reaseguradoras; Tipo CR=Seguros de Créditos.
A48: (2) Cifras en miles de pesos
A49: (3) Incluye acciones de S.A. cerradas, muebles y útiles, caja, derechos por inversiones en instrumentos derivados.
